fUST/lending_fUST_20250830
["ID","MTS","AMOUNT","RATE_DAILY","PERIOD"]
[382168048,1756527308142,-500.0,0.00024399,2]
[382168049,1756527308171,-504.72410589,0.00024399,2]
[382168050,1756527308199,-500.0,0.00024399,2]
[382168051,1756527308227,-641.06382875,0.00024399,2]
[382168052,1756527308257,-500.0,0.00024399,2]
[382168053,1756527308285,-367.96913567,0.00024399,2]
[382168054,1756527308314,-500.0,0.00024399,2]
[382168055,1756527308529,-500.0,0.00024399,2]
[382168056,1756527308559,-67.56701068,0.00024399,2]
[382168057,1756527308805,-432.43298932,0.00024399,2]
[382168058,1756527308837,-500.0,0.00024399,2]
[382168059,1756527308865,-180.30907522,0.00024399,2]
[382168060,1756527308894,-500.0,0.00024399,2]
[382168061,1756527308923,-500.0,0.00024399,2]
[382168062,1756527308954,-500.0,0.00024399,2]
[382168063,1756527308986,-500.0,0.00024399,2]
[382168064,1756527309018,-500.0,0.00024399,2]
[382168065,1756527309052,-292.46125652,0.00024399,2]
[382168066,1756527309086,-500.0,0.00024399,2]
[382168067,1756527309118,-195.03217174,0.00024399,2]
[382168068,1756527309149,-299.5390144,0.00024399,2]
[382168069,1756527309295,-200.4609856,0.00024399,2]
[382168070,1756527309328,-500.0,0.00024399,2]
[382168071,1756527309359,-500.0,0.00024399,2]
[382168072,1756527309390,-500.0,0.00024399,2]
[382168073,1756527309423,-500.0,0.00024399,2]
[382168074,1756527309453,-500.0,0.00024399,2]
[382168075,1756527309484,-500.0,0.00024399,2]
[382168076,1756527309513,-500.0,0.00024399,2]
[382168077,1756527309543,-500.0,0.00024399,2]
[382168078,1756527309573,-500.0,0.00024399,2]
[382168079,1756527309603,-99.0880288,0.00024399,2]
[382168080,1756527309702,-400.9119712,0.00024399,2]
[382168081,1756527309732,-500.0,0.00024399,2]
[382168082,1756527309764,-500.0,0.00024399,2]
[382168083,1756527309793,-219.56135008,0.00024399,2]
[382168084,1756527309822,-500.0,0.00024399,2]
[382168085,1756527309851,-528.38935972,0.00024399,2]
[382168086,1756527309881,-500.0,0.00024399,2]
[382168087,1756527309911,-500.0,0.00024399,2]
[382168088,1756527309941,-500.0,0.00024399,2]
[382168089,1756527309974,-500.0,0.00024399,2]
[382168090,1756527310004,-202.284638,0.00024399,2]
[382168091,1756527310174,-297.715362,0.00024399,2]
[382168092,1756527310203,-500.0,0.00024399,2]
[382168093,1756527310234,-500.0,0.00024399,2]
[382168094,1756527310264,-500.0,0.00024399,2]
[382168095,1756527310294,-438.4145874,0.00024399,2]
[382168096,1756527310324,-500.0,0.00024399,2]
[382168097,1756527310353,-500.0,0.00024399,2]
[382168098,1756527310383,-500.0,0.00024399,2]
[382168099,1756527310411,-500.0,0.00024399,2]
[382168100,1756527310440,-500.0,0.00024399,2]
[382168101,1756527310470,-27.7501012,0.00024399,2]
[382168102,1756527310842,-472.2498988,0.00024399,2]
[382168103,1756527310873,-500.0,0.00024399,2]
[382168104,1756527310904,-500.0,0.00024399,2]
[382168105,1756527310932,-437.59905995,0.00024399,2]
[382168106,1756527310971,-500.0,0.00024399,2]
[382168107,1756527311001,-500.0,0.00024399,2]
[382168108,1756527311032,-500.0,0.00024399,2]
[382168109,1756527311062,-176.18300461,0.00024399,2]
[382168110,1756527311094,-500.0,0.00024399,2]
[382168111,1756527311125,-500.0,0.00024399,2]
[382168112,1756527311155,-327.94607328,0.00024399,2]
[382168113,1756527311357,-172.05392672,0.00024399,2]
[382168114,1756527311386,-500.0,0.00024399,2]
[382168115,1756527311416,-500.0,0.00024399,2]
[382168116,1756527311445,-500.0,0.00024399,2]
[382168117,1756527311476,-500.0,0.00024399,2]
[382168118,1756527311505,-500.0,0.00024399,2]
[382168119,1756527311536,-500.0,0.00024399,2]
[382168120,1756527311565,-500.0,0.00024399,2]
[382168121,1756527311596,-500.0,0.00024399,2]
[382168122,1756527311628,-500.0,0.00024399,2]
[382168123,1756527311659,-155.90214656,0.00024399,2]
[382168124,1756527311816,-1435.79,0.0002439,10]
[382168125,1756527311846,-344.09785344,0.00024399,2]
[382168126,1756527311876,-500.0,0.00024399,2]
[382168127,1756527311906,-500.0,0.00024399,2]
[382168128,1756527311935,-500.0,0.00024399,2]
[382168129,1756527311968,-500.0,0.00024399,2]
[382168130,1756527311999,-500.0,0.00024399,2]
[382168131,1756527312031,-500.0,0.00024399,2]
[382168132,1756527312271,-500.0,0.00024399,2]
[382168133,1756527312301,-500.0,0.00024399,2]
[382168134,1756527312332,-500.0,0.00024399,2]
[382168135,1756527312362,-500.0,0.00024399,2]
[382168136,1756527312393,-500.0,0.00024399,2]
[382168137,1756527312424,-500.0,0.00024399,2]
[382168138,1756527312456,-500.0,0.00024399,2]
[382168139,1756527312634,-500.0,0.00024399,2]
[382168140,1756527312667,-500.0,0.00024399,2]
[382168141,1756527312699,-500.0,0.00024399,2]
[382168142,1756527325303,5000.0,0.00024255,2]
[382168143,1756527349139,5000.0,0.00024255,2]
[382168144,1756527373451,0.01,0.00024255,2]
[382168145,1756527373479,4999.99,0.00024255,2]
[382168146,1756527396644,5000.0,0.00024255,2]
[382168147,1756527420523,0.02,0.00024255,2]
[382168148,1756527420559,4999.98,0.00024255,2]
[382168149,1756527443725,5000.0,0.00024255,2]
[382168150,1756527449569,0.03,0.000199,2]
[382168151,1756527449593,322.98495408,0.000199,2]
[382168152,1756527459857,1091.54671468,0.00024255,2]
[382168153,1756527468339,5000.0,0.00024255,2]
[382168155,1756527491466,3585.47833124,0.00024255,2]
[382168156,1756527491489,1414.52166876,0.00024255,2]
[382168157,1756527515277,5000.0,0.00024255,2]
[382168158,1756527535391,2700.0,0.00023309,2]
[382168159,1756527538234,885.48833124,0.00024255,2]
[382168160,1756527538259,4114.51166876,0.00024255,2]
[382168161,1756527561584,5000.0,0.00024255,2]
[382168162,1756527576637,260.75435944,0.00024173,2]
[382168163,1756527584815,624.7439718,0.00024255,2]
[382168164,1756527584839,4375.2560282,0.00024255,2]
[382168166,1756527608375,5000.0,0.00024255,2]
[382168167,1756527626959,342.54080346,0.00023464,2]
[382168168,1756527629272,282.21316834,0.00023464,2]
[382168169,1756527629296,1086.57988229,0.00023464,2]
[382168170,1756527630658,253.66805234,0.000199,2]
[382168171,1756527632434,5000.0,0.00024255,2]
[382168172,1756527656176,3659.76206537,0.00024255,2]
[382168173,1756527656201,1340.23793463,0.00024255,2]
[382168174,1756527679813,5000.0,0.00024255,2]
[382168175,1756527684557,3659.77206537,0.00023364,2]
[382168176,1756527684579,6340.22793463,0.00023364,2]
[382168177,1756527699088,807.0730243,0.00023464,2]
[382168178,1756527701639,2852.70904107,0.00023464,2]
[382168179,1756527701661,372.35476402,0.00023464,2]
[382168180,1756527702465,1000.0,0.000242,2]
[382168181,1756527702723,5000.0,0.00024255,2]
[382168182,1756527726383,3627.65523598,0.00024255,2]
[382168183,1756527726406,1372.34476402,0.00024255,2]
[382168184,1756527728058,159.79039188,0.00024205,2]
[382168185,1756527728321,159.79039187,0.00024232,2]
[382168186,1756527748544,5000.0,0.00024255,2]
[382168187,1756527771380,3308.08445223,0.00024255,2]
[382168188,1756527771404,1691.91554777,0.00024255,2]
[382168189,1756527795070,5000.0,0.00024255,2]
[382168190,1756527808196,382.40392048,0.000199,2]
[382168191,1756527808707,2500.0,0.00023309,2]
[382168192,1756527819160,425.69053175,0.00024255,2]
[382168193,1756527819183,4574.30946825,0.00024255,2]
[382168194,1756527842366,5000.0,0.00024255,2]
[382168195,1756527864856,425.70053175,0.00024255,2]
[382168196,1756527864881,4574.29946825,0.00024255,2]
[382168197,1756527888516,5000.0,0.00024255,2]
[382168198,1756527908502,159.79039187,0.00024205,2]
[382168199,1756527910894,265.92013988,0.00024255,2]
[382168200,1756527910918,4734.07986012,0.00024255,2]
[382168201,1756527933902,5000.0,0.00024255,2]
[382168202,1756527945502,160.05387014,0.00024205,2]
[382168203,1756527961601,105.87626974,0.00024255,2]
[382168204,1756527961626,4894.12373026,0.00024255,2]
[382168205,1756527966437,160.033639,0.00013699,2]
[382168206,1756527966637,160.033639,0.00020548,2]
[382168208,1756527984377,4785.81899174,0.00024255,2]
[382168209,1756527984402,214.18100826,0.00024255,2]
[382168210,1756527986624,331.41673108,0.000199,2]
[382168211,1756528007723,5000.0,0.00024255,2]
[382168212,1756528011626,1001.315687,0.00023373,2]
[382168213,1756528031509,3453.09657366,0.00024255,2]
[382168214,1756528031544,1546.90342634,0.00024255,2]
[382168215,1756528054383,5000.0,0.00024255,2]
[382168216,1756528069572,3453.10657366,0.00018,2]
[382168217,1756528069596,1655.10602988,0.00018,2]
[382168218,1756528077287,5000.0,0.00024255,2]
[382168219,1756528077551,159.79039187,0.00024203,2]
[382168220,1756528081618,666.0,0.00023384,2]
[382168221,1756528100770,2519.11357825,0.00024255,2]
[382168222,1756528100795,61.02232099,0.00024255,2]
[382168223,1756528101966,1000.39458558,0.00015,2]
[382168224,1756528117580,584.11206976,0.000149,2]
[382168225,1756528117870,1000.0,0.0001,2]
[382168226,1756528118595,7354.48102367,0.00018,2]
[382168227,1756528118619,867.59468975,0.00018,2]
[382168228,1756528127793,-627.66701953,0.000243,2]
[382168229,1756528127844,-1255.33403906,0.000243,2]
[382168230,1756528127896,-2510.66807812,0.000243,2]
[382168231,1756528128255,-4978.67384376,0.000243,2]
[382168232,1756528128375,-2030.4533565,0.000243,2]
[382168233,1756528128408,-300.0,0.00024303,2]
[382168234,1756528128439,-1200.0,0.00024304,2]
[382168235,1756528136716,-300.0,0.00024371,2]
[382168236,1756528136746,-500.0,0.00024373,2]
[382168237,1756528136776,-500.0,0.00024373,2]
[382168238,1756528136805,-501.31195499,0.00024373,2]
[382168239,1756528136833,-500.0,0.00024373,2]
[382168240,1756528136864,-500.0,0.00024373,2]
[382168241,1756528136894,-502.20116784,0.00024373,2]
[382168242,1756528136922,-503.92401456,0.00024373,2]
[382168243,1756528136950,-500.0,0.00024373,2]
[382168244,1756528136978,-500.0,0.00024373,2]
[382168245,1756528137133,-500.0,0.00024373,2]
[382168246,1756528137162,-500.0,0.00024373,2]
[382168247,1756528137191,-501.21865721,0.00024373,2]
[382168248,1756528137220,-500.0,0.00024373,2]
[382168249,1756528137249,-500.0,0.00024373,2]
[382168250,1756528137278,-501.74279141,0.00024373,2]
[382168251,1756528137308,-500.0,0.00024373,2]
[382168252,1756528137337,-501.60924757,0.00024373,2]
[382168253,1756528137366,-500.0,0.00024373,2]
[382168254,1756528137396,-481.79190076,0.00024373,2]
[382168255,1756528137674,-27.2848061,0.00024373,2]
[382168256,1756528137704,-506.84425262,0.00024373,2]
[382168257,1756528137733,-535.82999307,0.00024373,2]
[382168258,1756528137761,-500.0,0.00024373,2]
[382168259,1756528137790,-501.19331251,0.00024373,2]
[382168260,1756528137819,-500.0,0.00024373,2]
[382168261,1756528137849,-500.0,0.00024373,2]
[382168262,1756528137879,-500.0,0.00024373,2]
[382168263,1756528137909,-500.58297378,0.00024373,2]
[382168264,1756528137940,-500.0,0.00024373,2]
[382168265,1756528137970,-353.71380619,0.00024373,2]
[382168266,1756528138636,-149.11171146,0.00024373,2]
[382168267,1756528138665,-520.22474796,0.00024373,2]
[382168268,1756528138693,-500.0,0.00024373,2]
[382168269,1756528138722,-500.0,0.00024385,2]
[382168270,1756528138754,-519.08760809,0.00024385,2]
[382168271,1756528138784,-629.9,0.0002439,3]
[382168272,1756528138814,-404.94,0.0002439,3]
[382168273,1756528138843,-202.47,0.0002439,3]
[382168274,1756528138872,-607.43,0.0002439,3]
[382168275,1756528138902,-737.19186498,0.0002439,10]
[382168276,1756528138991,-459.29813502,0.0002439,10]
[382168277,1756528143544,500.0,0.00024373,2]
[382168278,1756528143883,500.0,0.00024373,2]
[382168279,1756528144090,500.0,0.00024373,2]
[382168280,1756528144481,997.08,0.0002439,10]
[382168281,1756528147581,-300.0,0.00024397,2]
[382168282,1756528147612,-3261.899625,0.00024398,2]
[382168283,1756528163282,292.33523364,0.000199,2]
[382168284,1756528165967,829.4037598,0.00023492,2]
[382168285,1756528169180,-5815.8786401,0.00024398,2]
[382168286,1756528169205,-10000.01,0.00024398,2]
[382168287,1756528169333,-10000.01,0.00024398,2]
[382168288,1756528169348,-10000.01,0.00024398,2]
[382168289,1756528177594,-1609.2251911,0.00024398,2]
[382168290,1756528177628,-500.0,0.00024399,2]
[382168291,1756528177658,-500.0,0.00024399,2]
[382168292,1756528177690,-500.0,0.00024399,2]
[382168293,1756528177722,-500.0,0.00024399,2]
[382168294,1756528177755,-500.0,0.00024399,2]
[382168295,1756528177787,-500.0,0.00024399,2]
[382168296,1756528177820,-281.5596178,0.00024399,2]
[382168297,1756528177978,-218.4403822,0.00024399,2]
[382168298,1756528178133,-500.0,0.00024399,2]
[382168299,1756528178168,-448.64443877,0.00024399,2]
[382168300,1756528178202,-500.0,0.00024399,2]
[382168301,1756528178236,-500.0,0.00024399,2]
[382168302,1756528178269,-500.0,0.00024399,2]
[382168303,1756528178308,-500.0,0.00024399,2]
[382168304,1756528178341,-500.0,0.00024399,2]
[382168305,1756528178376,-500.0,0.00024399,2]
[382168306,1756528178410,-500.0,0.00024399,2]
[382168307,1756528178443,-500.0,0.00024399,2]
[382168308,1756528178552,-500.0,0.00024399,2]
[382168309,1756528178590,-500.0,0.00024399,2]
[382168310,1756528178624,-500.0,0.00024399,2]
[382168311,1756528178654,-500.0,0.00024399,2]
[382168312,1756528178686,-500.0,0.00024399,2]
[382168313,1756528178717,-500.0,0.00024399,2]
[382168314,1756528178750,-500.0,0.00024399,2]
[382168315,1756528178783,-500.0,0.00024399,2]
[382168316,1756528178814,-500.0,0.00024399,2]
[382168317,1756528178846,-500.0,0.00024399,2]
[382168318,1756528179263,-102.72112246,0.00024399,2]
[382168319,1756528179282,-0.01,0.00024399,2]
[382168320,1756528179821,-147.26887754,0.00024399,2]
[382168321,1756528179851,-1397.63683894,0.00024399,2]
[382168322,1756528179881,-609.48805969,0.00024399,2]
[382168323,1756528179910,-151.0,0.00024399,2]
[382168324,1756528179939,-152.65524359,0.00024399,2]
[382168325,1756528179968,-151.0,0.00024399,2]
[382168326,1756528179997,-500.0,0.00024399,2]
[382168327,1756528180026,-151.0,0.00024399,2]
[382168328,1756528180060,-154.06718767,0.00024399,2]
[382168329,1756528180092,-151.0,0.00024399,2]
[382168330,1756528180123,-152.22796554,0.00024399,2]
[382168331,1756528180155,-511.45762353,0.00024399,2]
[382168332,1756528180183,-500.0,0.00024399,2]
[382168333,1756528180214,-42.406407,0.00024399,2]
[382168334,1756528180651,-457.593593,0.00024399,2]
[382168335,1756528180866,-500.0,0.00024399,2]
[382168336,1756528180895,-500.0,0.00024399,2]
[382168337,1756528180922,-500.0,0.00024399,2]
[382168338,1756528180949,-500.0,0.00024399,2]
[382168339,1756528180976,-500.0,0.00024399,2]
[382168340,1756528181005,-500.0,0.00024399,2]
[382168341,1756528181337,-500.0,0.000244,2]
[382168342,1756528181353,-3084.822814,0.000244,2]
[382168343,1756528181379,-10000.01,0.000244,2]
[382168344,1756528181440,-199.6988805,0.00024299,2]
[382168345,1756528181449,-9800.3111195,0.000244,2]
[382168346,1756528181472,-10000.01,0.000244,2]
[382168347,1756528181490,-10000.01,0.000244,2]
[382168348,1756528213929,5000.0,0.00024001,2]
[382168360,1756528232331,-787.93471069,0.00024347,2]
[382168361,1756528232341,-401.29799446,0.00024347,2]
[382168363,1756528232350,-371.01,0.0002439,3]
[382168366,1756528232360,-185.51,0.0002439,3]
[382168368,1756528232369,-830.9,0.0002439,10]
[382168370,1756528232379,-556.54,0.0002439,3]
[382168372,1756528232390,-300.0,0.00024399,2]
[382168374,1756528232401,-1200.0,0.00024399,2]
[382168376,1756528232410,-53608.62541799,0.000244,2]
[382168476,1756528236734,541.5531023,0.00024001,2]
[382168485,1756528238049,-305.19226841,0.000244,2]
[382168486,1756528238160,-272701.0183801,0.000244,2]
[382168487,1756528238170,-2030.4533565,0.00024448,2]
[382168488,1756528238179,-168.0,0.00024524,2]
[382168489,1756528238189,-2030.4533565,0.00024595,2]
[382168490,1756528238199,-12147.82,0.00024596,2]
[382168491,1756528238208,-809.80674914,0.00024596,2]
[382168492,1756528238217,-1056.0697073,0.000246,2]
[382168493,1756528238227,-681.73016939,0.00024629,2]
[382168494,1756528238237,-134653.25577078,0.00024648,2]
[382168800,1756528243133,-253.91329771,0.0002439,10]
[382169124,1756528261091,500.0,0.00024001,2]
[382169125,1756528302306,164.3546242,0.00023767,2]
[382169126,1756528310889,436.7205559,0.00023578,2]
[382169128,1756528341201,258.55086528,0.000199,2]
[382169129,1756528341304,258.55086528,0.00022985,2]
[382169134,1756528408995,284.16691431,0.0002357,2]
[382169135,1756528519823,231.97092706,0.000199,2]
[382169136,1756528520175,231.97092706,0.00022985,2]
[382169139,1756528696704,201.04147012,0.000199,2]
[382169140,1756528697563,201.04147012,0.00022985,2]
[382169141,1756528739581,1690.08827837,0.0002328,2]
[382169142,1756528739604,8309.91172163,0.0002328,2]
[382169143,1756528757586,1690.09827837,0.00024001,2]
[382169144,1756528757824,3309.90172163,0.00024001,2]
[382169145,1756528780531,219.12268091,0.00024001,2]
[382169150,1756528874779,348.47188156,0.000199,2]
[382169151,1756528883777,791.68,0.00024,2]
[382169152,1756528976525,787.39157896,0.00023963,2]
[382169153,1756528991409,666.0,0.00023269,2]
[382169154,1756529052613,302.008964,0.000199,2]
[382169155,1756529064975,191.310701,0.00013699,2]
[382169156,1756529065008,191.310701,0.00020187,2]
[382169157,1756529069111,167.0,8.5e-07,2]
[382169159,1756529135310,4427.14991253,0.00023535,4]
[382169160,1756529142532,6761.7795156,0.00023266,2]
[382169161,1756529197360,721.731626,0.00023269,2]
[382169162,1756529235401,261.74110212,0.000199,2]
[382169163,1756529240236,2300.0,0.00022208,2]
[382169164,1756529243875,2300.0,0.00023304,2]
[382169165,1756529285967,1152.36993784,0.00024001,2]
[382169166,1756529370434,13305.78741251,0.00023963,2]
[382169167,1756529371207,2000.0,0.00024,2]
[382169170,1756529422258,226.56823216,0.000199,2]
[382169187,1756529432337,-168.0,0.00024063,2]
[382169188,1756529432347,-177.01210145,0.00024073,2]
[382169189,1756529432358,-191.62238337,0.00024173,2]
[382169279,1756529439197,-931.85136892,0.00024173,2]
[382169280,1756529439206,-280.8961811,0.00024184,2]
[382169281,1756529439216,-280.8961811,0.00024192,2]
[382169282,1756529439225,-1200.0,0.00024198,2]
[382169283,1756529439235,-300.0,0.00024198,2]
[382169284,1756529439246,-300.0,0.00024198,2]
[382169285,1756529439255,-300.0,0.00024198,2]
[382169286,1756529439265,-300.0,0.00024198,2]
[382169287,1756529439274,-17313.64910601,0.00024199,2]
[382169288,1756529439284,-280.8961811,0.00024199,2]
[382169289,1756529439295,-1200.0,0.00024247,2]
[382169290,1756529439304,-50000.0,0.00024248,2]
[382169291,1756529439314,-500.0,0.00024273,2]
[382169292,1756529439323,-500.4491363,0.00024273,2]
[382169293,1756529439332,-500.0,0.00024273,2]
[382169294,1756529439342,-500.0,0.00024273,2]
[382169295,1756529439351,-501.56730086,0.00024273,2]
[382169296,1756529439360,-266.86523517,0.00024273,2]
[382169297,1756529439369,-500.0,0.00024273,2]
[382169298,1756529439379,-529.0921945,0.00024273,2]
[382169299,1756529439389,-500.0,0.00024273,2]
[382169300,1756529439399,-501.90810204,0.00024273,2]
[382169301,1756529439408,-500.0,0.00024273,2]
[382169302,1756529439417,-500.0,0.00024273,2]
[382169303,1756529439427,-281.17593498,0.00024273,2]
[382169304,1756529439437,-371.62815357,0.00024273,2]
[382169305,1756529439446,-500.0,0.00024273,2]
[382169306,1756529439456,-500.0,0.00024273,2]
[382169307,1756529439466,-163.65269664,0.00024273,2]
[382169308,1756529439476,-503.78743952,0.00024273,2]
[382169309,1756529439485,-500.83751189,0.00024273,2]
[382169310,1756529439495,-500.0,0.00024273,2]
[382169311,1756529439504,-500.0,0.00024273,2]
[382169312,1756529439513,-293.4855398,0.00024284,2]
[382169313,1756529439523,-650.1,0.00024288,10]
[382169314,1756529439532,-398.63,0.00024289,3]
[382169315,1756529439542,-199.31,0.00024289,3]
[382169316,1756529439552,-597.96,0.00024289,3]
[382169317,1756529439561,-2976.59,0.00024297,2]
[382169318,1756529439571,-500.0,0.00024298,2]
[382169319,1756529439581,-500.0,0.00024298,2]
[382169320,1756529439590,-500.0,0.00024298,2]
[382169321,1756529439600,-500.0,0.00024298,2]
[382169322,1756529439610,-500.0,0.00024298,2]
[382169323,1756529439619,-503.86996253,0.00024298,2]
[382169324,1756529439629,-445.75127041,0.00024298,2]
[382169325,1756529439638,-500.0,0.00024298,2]
[382169326,1756529439648,-500.0,0.00024298,2]
[382169327,1756529439657,-500.0,0.00024298,2]
[382169328,1756529439667,-386.24249539,0.00024298,2]
[382169329,1756529439677,-500.0,0.00024298,2]
[382169330,1756529439687,-500.0,0.00024298,2]
[382169331,1756529439696,-500.0,0.00024298,2]
[382169332,1756529439706,-500.0,0.00024298,2]
[382169333,1756529439715,-500.0,0.00024298,2]
[382169334,1756529439725,-168.79622147,0.00024298,2]
[382169335,1756529439734,-500.0,0.00024298,2]
[382169336,1756529439744,-500.0,0.00024298,2]
[382169337,1756529439753,-186.70100836,0.00024298,2]
[382169338,1756529439763,-500.0,0.00024298,2]
[382169339,1756529439775,-500.0,0.00024298,2]
[382169340,1756529439785,-500.0,0.00024298,2]
[382169341,1756529439795,-500.0,0.00024298,2]
[382169342,1756529439804,-500.0,0.00024298,2]
[382169343,1756529439813,-500.0,0.00024298,2]
[382169344,1756529439823,-500.0,0.00024298,2]
[382169346,1756529439832,-500.0,0.00024298,2]
[382169347,1756529439842,-500.0,0.00024298,2]
[382169348,1756529439851,-235.32307606,0.00024298,2]
[382169349,1756529439860,-500.0,0.00024298,2]
[382169350,1756529439868,-500.0,0.00024298,2]
[382169351,1756529439878,-476.05215068,0.00024298,2]
[382169352,1756529439887,-500.0,0.00024298,2]
[382169353,1756529439897,-500.0,0.00024298,2]
[382169354,1756529439905,-500.0,0.00024298,2]
[382169355,1756529439913,-567.61830046,0.00024298,2]
[382169356,1756529439923,-500.0,0.00024298,2]
[382169359,1756529439933,-205.40167514,0.00024298,2]
[382169361,1756529439943,-500.0,0.00024298,2]
[382169363,1756529439953,-500.0,0.00024298,2]
[382169365,1756529439963,-182.34042542,0.00024298,2]
[382169367,1756529439972,-343.0887482,0.00024298,2]
[382169369,1756529439981,-500.0,0.00024298,2]
[382169370,1756529439991,-500.0,0.00024298,2]
[382169372,1756529440000,-500.0,0.00024298,2]
[382169374,1756529440010,-500.0,0.00024298,2]
[382169376,1756529440019,-500.0,0.00024298,2]
[382169378,1756529440028,-406.24803878,0.00024298,2]
[382169380,1756529440038,-500.0,0.00024298,2]
[382169381,1756529440047,-500.0,0.00024298,2]
[382169383,1756529440056,-500.0,0.00024298,2]
[382169385,1756529440066,-500.0,0.00024298,2]
[382169387,1756529440076,-409.00728405,0.00024298,2]
[382169389,1756529440086,-500.0,0.00024298,2]
[382169391,1756529440095,-500.0,0.00024298,2]
[382169393,1756529440105,-500.0,0.00024298,2]
[382169394,1756529440115,-500.0,0.00024298,2]
[382169396,1756529440124,-500.0,0.00024298,2]
[382169397,1756529440134,-500.0,0.00024298,2]
[382169399,1756529440143,-500.0,0.00024298,2]
[382169401,1756529440153,-500.0,0.00024298,2]
[382169403,1756529440162,-500.0,0.00024298,2]
[382169405,1756529440172,-500.0,0.00024298,2]
[382169407,1756529440182,-500.0,0.00024298,2]
[382169409,1756529440191,-289.80700918,0.00024298,2]
[382169410,1756529440200,-499.99999999,0.00024298,2]
[382169412,1756529440210,-500.0,0.00024298,2]
[382169414,1756529440219,-500.0,0.00024298,2]
[382169416,1756529440230,-500.0,0.00024298,2]
[382169418,1756529440241,-500.0,0.00024298,2]
[382169420,1756529440251,-500.0,0.00024298,2]
[382169422,1756529440260,-500.0,0.00024298,2]
[382169424,1756529440269,-500.0,0.00024298,2]
[382169425,1756529440279,-559.65574393,0.00024298,2]
[382169427,1756529440293,-500.0,0.00024298,2]
[382169429,1756529440302,-500.0,0.00024298,2]
[382169431,1756529440313,-500.0,0.00024298,2]
[382169433,1756529440322,-500.0,0.00024298,2]
[382169435,1756529440333,-500.0,0.00024298,2]
[382169436,1756529440342,-537.06854787,0.00024298,2]
[382169438,1756529440352,-370000.0,0.00024299,2]
[382169440,1756529440363,-3815.35310413,0.00024299,2]
[382169442,1756529440373,-151.81389607,0.00024399,2]
[382169444,1756529440383,-196.94548854,0.00024399,2]
[382169446,1756529440392,-500.0,0.00024399,2]
[382169448,1756529440403,-151.0,0.00024399,2]
[382169449,1756529440413,-151.0,0.00024399,2]
[382169450,1756529440422,-151.0,0.00024399,2]
[382169451,1756529440432,-151.0,0.00024399,2]
[382169452,1756529440441,-152.05890476,0.00024399,2]
[382169453,1756529440450,-151.95956639,0.00024399,2]
[382169454,1756529440459,-151.0,0.00024399,2]
[382169455,1756529440468,-200.57885179,0.00024399,2]
[382169456,1756529440478,-151.0,0.00024399,2]
[382169458,1756529440488,-151.0,0.00024399,2]
[382169460,1756529440497,-500.0,0.00024399,2]
[382169461,1756529440507,-153.78909165,0.00024399,2]
[382169463,1756529440516,-151.0,0.00024399,2]
[382169465,1756529440525,-2300.0,0.000244,2]
[382169467,1756529440535,-1288.1438041,0.000244,2]
[382169469,1756529440544,-3815.35310412,0.00024418,2]
[382169470,1756529440553,-809.80674914,0.00024443,2]
[382169472,1756529440562,-162.4004196,0.00024468,2]
[382169474,1756529440572,-8024.0596743,0.00024468,2]
[382169476,1756529440581,-168.0,0.00024479,2]